fUSD/lending_fUSD_20240501
["ID","MTS","AMOUNT","RATE_DAILY","PERIOD"]
[325155912,1714542657417,-500.0,0.0001178,2]
[325155913,1714542657426,-1275.71,0.0001178,2]
[325155914,1714542657436,-500.0,0.0001178,2]
[325155915,1714542657445,-500.0,0.0001178,2]
[325155916,1714542657455,-758.67,0.0001178,2]
[325155917,1714542657464,-500.0,0.0001178,2]
[325155918,1714542657474,-886.96,0.0001178,2]
[325155919,1714542657483,-500.0,0.0001178,2]
[325155920,1714542657492,-500.0,0.0001178,2]
[325155921,1714542657502,-500.0,0.0001178,2]
[325155922,1714542657512,-2677.35,0.0001178,2]
[325155923,1714542657521,-500.0,0.0001178,2]
[325155924,1714542657530,-500.0,0.0001178,2]
[325155925,1714542657539,-543.39397513,0.0001178,2]
[325155926,1714542657549,-526.41761176,0.0001178,2]
[325155927,1714542657558,-1235.88,0.0001178,2]
[325155928,1714542657567,-500.0,0.0001178,2]
[325155929,1714542657576,-866.09,0.0001178,2]
[325155930,1714542657586,-500.0,0.0001178,2]
[325155931,1714542657594,-500.0,0.0001178,2]
[325155932,1714542657603,-1072.35,0.0001178,2]
[325155933,1714542657613,-1288.28,0.0001178,2]
[325155934,1714542657623,-500.0,0.0001178,2]
[325155935,1714542657632,-500.0,0.0001178,2]
[325155936,1714542657641,-500.0,0.0001178,2]
[325155937,1714542657650,-3316.24,0.0001178,2]
[325155938,1714542657659,-1241.61,0.0001178,2]
[325155939,1714542657667,-500.0,0.0001178,2]
[325155940,1714542657677,-500.0,0.0001178,2]
[325155941,1714542657688,-500.0,0.0001178,2]
[325155942,1714542657698,-500.0,0.0001178,2]
[325155943,1714542657707,-534.65,0.0001178,2]
[325155944,1714542657717,-2504.85,0.0001178,2]
[325155945,1714542657726,-500.0,0.0001178,2]
[325155946,1714542657735,-500.0,0.0001178,2]
[325155947,1714542657745,-810.87,0.0001178,2]
[325155948,1714542657754,-500.0,0.0001178,2]
[325155949,1714542657763,-500.0,0.0001178,2]
[325155950,1714542657772,-604.1374282,0.0001178,2]
[325155951,1714542657781,-507.55,0.0001178,2]
[325155952,1714542657791,-870.27,0.0001178,2]
[325155953,1714542657801,-620.42347491,0.0001178,2]
[325155954,1714542657810,-3432.19,0.0001178,2]
[325155955,1714542657819,-1019.03,0.0001178,2]
[325155956,1714542657829,-500.0,0.0001178,2]
[325155957,1714542657837,-935.9,0.0001178,2]
[325155958,1714542657847,-563.78,0.0001178,2]
[325155959,1714542657856,-2956.33,0.0001178,2]
[325155960,1714542657864,-1026.81,0.0001178,2]
[325155961,1714542657873,-3294.14,0.0001178,2]
[325155962,1714542657883,-500.0,0.0001178,2]
[325155963,1714542657893,-500.0,0.0001178,2]
[325155964,1714542657902,-500.0,0.0001178,2]
[325155965,1714542657911,-1610.66,0.0001178,2]
[325155966,1714542657920,-500.0,0.0001178,2]
[325155967,1714542657930,-500.0,0.0001178,2]
[325155968,1714542657940,-1323.01,0.0001178,2]
[325155969,1714542657949,-6150.44,0.0001178,2]
[325155970,1714542657959,-1965.64,0.0001178,2]
[325155971,1714542657968,-500.0,0.0001178,2]
[325155972,1714542657978,-500.0,0.0001178,2]
[325155973,1714542657987,-500.0,0.0001178,2]
[325155974,1714542657996,-500.34,0.0001178,2]
[325155975,1714542658005,-11884.42,0.0001178,2]
[325155976,1714542658016,-500.0,0.0001178,2]
[325155977,1714542658025,-1478.72,0.0001178,2]
[325155978,1714542658034,-1095.18,0.0001178,2]
[325155979,1714542658043,-12067.93,0.0001178,2]
[325155980,1714542658052,-1361.3,0.0001178,2]
[325155981,1714542658061,-500.0,0.0001178,2]
[325155982,1714542658070,-671.59,0.0001178,2]
[325155983,1714542658080,-500.0,0.0001178,2]
[325155984,1714542658089,-803.19,0.0001178,2]
[325155985,1714542658099,-510.64,0.0001178,2]
[325155986,1714542658107,-1131.44,0.0001178,2]
[325155987,1714542658117,-5313.27,0.0001178,2]
[325155988,1714542658126,-1967.48,0.0001178,2]
[325155989,1714542658135,-741.95,0.0001178,2]
[325155990,1714542658144,-500.0,0.0001178,2]
[325155991,1714542658153,-500.0,0.0001178,2]
[325155992,1714542658162,-500.0,0.0001178,2]
[325155993,1714542658172,-500.0,0.0001178,2]
[325155994,1714542658183,-12501.05,0.0001178,2]
[325155995,1714542658193,-175.87367961,0.0001178,2]
[325155996,1714542658204,-500.0,0.0001178,2]
[325155997,1714542658216,-500.0,0.0001178,2]
[325155998,1714542658225,-3900.0,0.000118,4]
[325155999,1714542658235,-3000.0,0.0001188,2]
[325156000,1714542658244,-5300.0,0.000119,4]
[325156001,1714542658254,-500.0,0.00011901,2]
[325156002,1714542658263,-920.9,0.00011914,2]
[325156003,1714542658271,-1394.0,0.00011935,2]
[325156004,1714542658280,-3082.64415002,0.00011984,2]
[325156005,1714542658290,-276.22985248,0.00011995,2]
[325156006,1714542658300,-447.96435383,0.00011995,2]
[325156007,1714542658310,-167.58233418,0.00011995,2]
[325156008,1714542658320,-155.5035725,0.00011995,2]
[325156009,1714542658329,-408.44498467,0.00011995,2]
[325156010,1714542658339,-155.31169365,0.00011995,2]
[325156011,1714542658348,-1132.00221219,0.00011995,2]
[325156012,1714542658356,-155.45060426,0.00011995,2]
[325156013,1714542658366,-1317.77615422,0.00011995,2]
[325156014,1714542658375,-90214.93343053,0.00011997,2]
[325156015,1714542658385,-558.17277273,0.00011997,2]
[325156016,1714542658394,-151.50674154,0.00011997,2]
[325156017,1714542658403,-15024.6151219,0.00012,2]
[325156018,1714542658412,-5000.0,0.00012,2]
[325156019,1714542658422,-11429.99168288,0.00012,2]
[325156020,1714542658433,-409.3828276,0.00012,2]
[325156021,1714542658443,-1000.0,0.00012,2]
[325156022,1714542658452,-425901.63031273,0.00012,2]
[325156023,1714542658462,-151.502295,0.00012,2]
[325156024,1714542658471,-151.0,0.00012,2]
[325156025,1714542658480,-151.0,0.00012,2]
[325156026,1714542658489,-151.0,0.00012,2]
[325156027,1714542658499,-151.0,0.00012,2]
[325156028,1714542658508,-151.0,0.00012,2]
[325156029,1714542658517,-151.0,0.00012,2]
[325156030,1714542658526,-177.002742,0.00012,2]
[325156031,1714542658535,-151.0,0.00012,2]
[325156032,1714542658544,-151.0,0.00012,2]
[325156033,1714542658553,-151.0,0.00012,2]
[325156034,1714542658562,-151.0,0.00012,2]
[325156035,1714542658571,-151.0,0.00012,2]
[325156036,1714542658580,-2450.0,0.00012,3]
[325156037,1714542658592,-451.786052,0.00012,2]
[325156038,1714542658601,-451.786052,0.00012,2]
[325156039,1714542658610,-151.0,0.00012,2]
[325156040,1714542658619,-306.772243,0.00012,2]
[325156041,1714542658628,-306.772243,0.00012,2]
[325156042,1714542658638,-151.0,0.00012,2]
[325156043,1714542658647,-151.0,0.00012,2]
[325156044,1714542658655,-151.0,0.00012,2]
[325156045,1714542658664,-151.0,0.00012,2]
[325156046,1714542658673,-151.0,0.00012,2]
[325156047,1714542658684,-151.0,0.00012,2]
[325156048,1714542658693,-210.20781,0.00012,2]
[325156049,1714542658702,-337.179694,0.00012,2]
[325156050,1714542658711,-210.20781,0.00012,2]
[325156051,1714542658720,-337.179694,0.00012,2]
[325156052,1714542658730,-644.646043,0.00012,2]
[325156053,1714542658739,-644.646043,0.00012,2]
[325156054,1714542658749,-151.0,0.00012,2]
[325156055,1714542658758,-501.795764,0.00012,2]
[325156056,1714542658767,-151.0,0.00012,2]
[325156057,1714542658777,-501.795764,0.00012,2]
[325156058,1714542658786,-151.0,0.00012,2]
[325156059,1714542658796,-379.770739,0.00012,2]
[325156060,1714542658805,-151.0,0.00012,2]
[325156061,1714542658815,-379.770739,0.00012,2]
[325156062,1714542658824,-151.0,0.00012,2]
[325156063,1714542658834,-151.0,0.00012,2]
[325156064,1714542658843,-151.0,0.00012,2]
[325156065,1714542658853,-151.0,0.00012,2]
[325156066,1714542658862,-181.378159,0.00012,2]
[325156067,1714542658871,-151.0,0.00012,2]
[325156068,1714542658882,-1004.0,0.00012,2]
[325156069,1714542658891,-151.0,0.00012,2]
[325156070,1714542658901,-151.0,0.00012,2]
[325156071,1714542658911,-210.1284,0.00012,2]
[325156072,1714542658921,-353.856056,0.00012,2]
[325156073,1714542658932,-151.0,0.00012,2]
[325156074,1714542658941,-210.1284,0.00012,2]
[325156075,1714542658951,-353.856056,0.00012,2]
[325156076,1714542658960,-151.0,0.00012,2]
[325156077,1714542658970,-260.832322,0.00012,2]
[325156078,1714542658979,-151.0,0.00012,2]
[325156079,1714542658988,-260.832322,0.00012,2]
[325156080,1714542658999,-286.511686,0.00012,2]
[325156081,1714542659008,-194.313902,0.00012,2]
[325156082,1714542659019,-194.313902,0.00012,2]
[325156083,1714542659028,-581.766893,0.00012,2]
[325156084,1714542659037,-581.766893,0.00012,2]
[325156085,1714542659047,-151.0,0.00012,2]
[325156086,1714542659056,-154.670556,0.00012,2]
[325156087,1714542659066,-151.0,0.00012,2]
[325156088,1714542659075,-662.05595,0.00012,2]
[325156089,1714542659085,-154.670556,0.00012,2]
[325156090,1714542659094,-662.05595,0.00012,2]
[325156091,1714542659103,-151.0,0.00012,2]
[325156092,1714542659112,-151.0,0.00012,2]
[325156093,1714542659122,-151.0,0.00012,2]
[325156094,1714542659131,-151.0,0.00012,2]
[325156095,1714542659140,-151.0,0.00012,2]
[325156096,1714542659150,-211.9898,0.00012,2]
[325156097,1714542659159,-151.0,0.00012,2]
[325156098,1714542659168,-151.0,0.00012,2]
[325156099,1714542659178,-151.0,0.00012,2]
[325156100,1714542659190,-151.0,0.00012,2]
[325156101,1714542659200,-151.0,0.00012,2]
[325156102,1714542659213,-151.0,0.00012,2]
[325156103,1714542659222,-330.83873912,0.00012,2]
[325156104,1714542659232,-151.0,0.00012,2]
[325156105,1714542659241,-151.0,0.00012,2]
[325156106,1714542659251,-151.0,0.00012,2]
[325156107,1714542659260,-669.191741,0.00012,2]
[325156108,1714542659269,-669.191741,0.00012,2]
[325156109,1714542659279,-10000.0,0.00012,2]
[325156110,1714542659293,-174.19,0.00012033,2]
[325156111,1714542659302,-150.0,0.00012043,2]
[325156112,1714542659311,-1688.20878046,0.0001205,2]
[325156113,1714542659321,-436.61177619,0.00012052,2]
[325156114,1714542659331,-14757.0,0.00012054,2]
[325156115,1714542659340,-500.0,0.00012054,2]
[325156116,1714542659350,-500.0,0.00012054,2]
[325156117,1714542659359,-506.3188555,0.00012054,2]
[325156118,1714542659368,-500.0,0.00012054,2]
[325156119,1714542659378,-500.0,0.00012054,2]
[325156120,1714542659387,-500.0,0.00012054,2]
[325156121,1714542659397,-570.97568251,0.00012054,2]
[325156122,1714542659406,-500.0,0.00012054,2]
[325156123,1714542659415,-500.0,0.00012054,2]
[325156124,1714542659424,-500.0,0.00012054,2]
[325156125,1714542659438,-500.0,0.00012054,2]
[325156126,1714542659449,-500.0,0.00012054,2]
[325156127,1714542659458,-194.42437745,0.00012054,2]
[325156128,1714542659467,-625.53427497,0.00012054,2]
[325156129,1714542659477,-500.0,0.00012054,2]
[325156130,1714542659486,-500.0,0.00012054,2]
[325156131,1714542659495,-500.0,0.00012054,2]
[325156132,1714542659504,-500.0,0.00012054,2]
[325156133,1714542659513,-179.94146163,0.00012054,2]
[325156134,1714542659523,-500.0,0.00012054,2]
[325156135,1714542659532,-528.79943083,0.00012054,2]
[325156136,1714542659541,-1188.74,0.00012054,2]
[325156137,1714542659550,-316.42258179,0.00012054,2]
[325156138,1714542659559,-500.0,0.00012054,2]
[325156139,1714542659568,-297.19627817,0.00012054,2]
[325156140,1714542659577,-500.0,0.00012054,2]
[325156141,1714542659587,-614.23000097,0.00012054,2]
[325156142,1714542659598,-500.0,0.00012054,2]
[325156143,1714542659608,-500.0,0.00012054,2]
[325156144,1714542659618,-500.0,0.00012054,2]
[325156145,1714542659628,-500.0,0.00012054,2]
[325156146,1714542659637,-500.0,0.00012054,2]
[325156147,1714542659647,-500.0,0.00012054,2]
[325156148,1714542659656,-500.0,0.00012054,2]
[325156149,1714542659667,-500.0,0.00012054,2]
[325156150,1714542659676,-500.0,0.00012054,2]
[325156151,1714542659689,-500.0,0.00012054,2]
[325156152,1714542659698,-669.77,0.00012054,2]
[325156153,1714542659708,-1625.73,0.00012054,2]
[325156154,1714542659717,-500.0,0.00012054,2]
[325156155,1714542659727,-500.0,0.00012054,2]
[325156156,1714542659737,-500.0,0.00012054,2]
[325156157,1714542659747,-550.3727949,0.00012054,2]
[325156158,1714542659757,-500.0,0.00012054,2]
[325156159,1714542659767,-403.76901964,0.00012054,2]
[325156160,1714542659777,-584.18,0.00012054,2]
[325156161,1714542659787,-500.0,0.00012054,2]
[325156162,1714542659797,-500.0,0.00012054,2]
[325156163,1714542659806,-571.47,0.00012054,2]
[325156164,1714542659817,-500.0,0.00012054,2]
[325156165,1714542659827,-500.0,0.00012054,2]
[325156166,1714542659837,-500.0,0.00012054,2]
[325156167,1714542659848,-500.0,0.00012054,2]
[325156168,1714542659858,-586.79,0.00012054,2]
[325156169,1714542659867,-329.07,0.00012054,2]
[325156170,1714542659877,-500.0,0.00012054,2]
[325156171,1714542659886,-500.0,0.00012054,2]
[325156172,1714542659896,-500.0,0.00012054,2]
[325156173,1714542659906,-230.46721538,0.00012054,2]
[325156174,1714542659915,-150.0,0.00012054,2]
[325156175,1714542659925,-500.0,0.00012054,2]
[325156176,1714542659937,-500.0,0.00012054,2]
[325156177,1714542659946,-500.0,0.00012054,2]
[325156178,1714542659955,-500.0,0.00012054,2]
[325156179,1714542659964,-500.0,0.00012054,2]
[325156180,1714542659974,-500.0,0.00012054,2]
[325156181,1714542659983,-500.0,0.00012054,2]
[325156182,1714542659993,-500.0,0.00012054,2]
[325156183,1714542660002,-500.0,0.00012054,2]
[325156184,1714542660012,-500.0,0.00012054,2]
[325156185,1714542660022,-500.0,0.00012054,2]
[325156186,1714542660031,-716.58,0.00012054,2]
[325156187,1714542660041,-500.0,0.00012054,2]
[325156188,1714542660050,-500.0,0.00012054,2]
[325156189,1714542660060,-283.19113768,0.00012054,2]
[325156190,1714542660069,-236.05792211,0.00012054,2]
[325156191,1714542660079,-500.0,0.00012054,2]
[325156192,1714542660088,-500.0,0.00012054,2]
[325156193,1714542660098,-500.0,0.00012054,2]
[325156194,1714542660107,-500.0,0.00012054,2]
[325156195,1714542660117,-500.0,0.00012054,2]
[325156196,1714542660126,-500.0,0.00012054,2]
[325156197,1714542660136,-500.0,0.00012054,2]
[325156198,1714542660145,-500.0,0.00012054,2]
[325156199,1714542660155,-500.0,0.00012054,2]
[325156200,1714542660164,-500.0,0.00012054,2]
[325156201,1714542660173,-500.0,0.00012054,2]
[325156202,1714542660183,-318.45303902,0.00012054,2]
[325156203,1714542660197,-500.0,0.00012054,2]
[325156204,1714542660207,-500.0,0.00012054,2]
[325156205,1714542660221,-500.0,0.00012054,2]
[325156206,1714542660231,-534.52306031,0.00012054,2]
[325156207,1714542660241,-500.0,0.00012054,2]
[325156208,1714542660251,-161.66209328,0.00012054,2]
[325156209,1714542660261,-500.0,0.00012054,2]
[325156210,1714542660271,-500.0,0.00012054,2]
[325156211,1714542660281,-500.0,0.00012054,2]
[325156212,1714542660294,-500.0,0.00012054,2]
[325156213,1714542660304,-500.0,0.00012054,2]
[325156214,1714542660314,-500.0,0.00012054,2]
[325156215,1714542660324,-337.97672203,0.00012054,2]
[325156216,1714542660333,-500.0,0.00012054,2]
[325156217,1714542660344,-704.22,0.00012054,2]
[325156218,1714542660353,-500.0,0.00012054,2]
[325156219,1714542660362,-500.0,0.00012054,2]
[325156220,1714542660372,-500.0,0.00012054,2]
[325156221,1714542660381,-500.0,0.00012054,2]
[325156222,1714542660391,-500.0,0.00012054,2]
[325156223,1714542660400,-1776.56,0.00012054,2]
[325156224,1714542660409,-500.0,0.00012054,2]
[325156225,1714542660419,-500.0,0.00012054,2]
[325156226,1714542660428,-500.0,0.00012054,2]
[325156227,1714542660442,-500.0,0.00012054,2]
[325156228,1714542660452,-512.57746384,0.00012054,2]
[325156229,1714542660461,-500.0,0.00012054,2]
[325156230,1714542660471,-686.3,0.00012054,2]
[325156231,1714542660480,-500.0,0.00012054,2]
[325156232,1714542660490,-500.0,0.00012054,2]
[325156233,1714542660499,-500.0,0.00012054,2]
[325156234,1714542660509,-500.0,0.00012054,2]
[325156235,1714542660518,-626.52,0.00012054,2]
[325156236,1714542660528,-1184.92,0.00012054,2]
[325156237,1714542660538,-500.0,0.00012054,2]
[325156238,1714542660548,-309.41148365,0.00012054,2]
[325156239,1714542660558,-699.23,0.00012054,2]
[325156240,1714542660568,-500.0,0.00012054,2]
[325156241,1714542660578,-500.0,0.00012054,2]
[325156242,1714542660588,-500.0,0.00012054,2]
[325156243,1714542660598,-500.0,0.00012054,2]
[325156244,1714542660608,-500.0,0.00012054,2]
[325156245,1714542660618,-7170.82,0.00012054,2]
[325156246,1714542660628,-589.48,0.00012054,2]
[325156247,1714542660638,-500.0,0.00012054,2]
[325156248,1714542660648,-625.52,0.00012054,2]
[325156249,1714542660658,-643.14,0.00012054,2]
[325156250,1714542660667,-809.92,0.00012054,2]
[325156251,1714542660677,-408.07829698,0.00012054,2]
[325156252,1714542660690,-500.0,0.00012054,2]
[325156253,1714542660700,-500.0,0.00012054,2]
[325156254,1714542660710,-697.39,0.00012054,2]
[325156255,1714542660720,-1650.0,0.00012054,2]
[325156256,1714542660731,-7789.17,0.00012054,2]
[325156257,1714542660741,-507.34316154,0.00012054,2]
[325156258,1714542660750,-500.0,0.00012054,2]
[325156259,1714542660760,-500.0,0.00012054,2]
[325156260,1714542660770,-3346.94,0.00012054,2]
[325156261,1714542660779,-500.0,0.00012054,2]
[325156262,1714542660789,-724.59,0.00012054,2]
[325156263,1714542660799,-585.15,0.00012054,2]
[325156264,1714542660959,-549.53,0.00012054,2]
[325156265,1714542660988,-500.0,0.00012054,2]
[325156266,1714542660998,-500.0,0.00012054,2]
[325156267,1714542661008,-711.11,0.00012054,2]
[325156268,1714542661017,-1021.06,0.00012054,2]
[325156269,1714542661027,-500.0,0.00012054,2]
[325156270,1714542661037,-1018.7,0.00012054,2]
[325156271,1714542661046,-500.0,0.00012054,2]
[325156272,1714542661056,-3038.17,0.00012054,2]
[325156273,1714542661065,-500.0,0.00012054,2]
[325156274,1714542661075,-276.65773956,0.00012054,2]
[325156275,1714542661085,-500.0,0.00012054,2]
[325156276,1714542661095,-591.4,0.00012054,2]
[325156277,1714542661104,-1962.87,0.00012054,2]
[325156278,1714542661114,-500.0,0.00012054,2]
[325156279,1714542661123,-1298.52,0.00012054,2]
[325156280,1714542661133,-1337.7,0.00012054,2]
[325156281,1714542661142,-596.83640041,0.00012054,2]
[325156282,1714542661152,-500.0,0.00012054,2]
[325156283,1714542661162,-500.0,0.00012054,2]
[325156284,1714542661171,-500.0,0.00012054,2]
[325156285,1714542661181,-1264.24,0.00012054,2]
[325156286,1714542661193,-500.0,0.00012054,2]
[325156287,1714542661204,-1069.93,0.00012054,2]
[325156288,1714542661218,-582.27,0.00012054,2]
[325156289,1714542661227,-500.0,0.00012054,2]
[325156290,1714542661236,-500.0,0.00012054,2]
[325156291,1714542661247,-710.13,0.00012054,2]
[325156292,1714542661256,-500.0,0.00012054,2]
[325156293,1714542661266,-500.0,0.00012054,2]
[325156294,1714542661275,-500.0,0.00012054,2]
[325156295,1714542661287,-500.0,0.00012054,2]
[325156296,1714542661296,-690.32,0.00012054,2]
[325156297,1714542661306,-738.69,0.00012054,2]
[325156298,1714542661316,-500.0,0.00012054,2]
[325156299,1714542661325,-500.0,0.00012054,2]
[325156300,1714542661335,-500.0,0.00012054,2]
[325156301,1714542661345,-500.0,0.00012054,2]
[325156302,1714542661355,-500.0,0.00012054,2]
[325156303,1714542661364,-500.0,0.00012054,2]
[325156304,1714542661373,-2161.38,0.00012054,2]
[325156305,1714542661383,-966.37,0.00012054,2]
[325156306,1714542661392,-4905.9,0.00012054,2]
[325156307,1714542661402,-500.0,0.00012054,2]
[325156308,1714542661411,-1948.4,0.00012054,2]
[325156309,1714542661421,-759.28,0.00012054,2]
[325156310,1714542661431,-500.0,0.00012054,2]
[325156311,1714542661442,-1275.71,0.00012054,2]
[325156312,1714542661452,-500.0,0.00012054,2]
[325156313,1714542661461,-500.0,0.00012054,2]
[325156314,1714542661471,-758.67,0.00012054,2]
[325156315,1714542661480,-500.0,0.00012054,2]
[325156316,1714542661490,-886.96,0.00012054,2]
[325156317,1714542661500,-500.0,0.00012054,2]
[325156318,1714542661510,-331.40777118,0.00012054,2]
[325156319,1714542661520,-500.0,0.00012054,2]
[325156320,1714542661530,-2677.35,0.00012054,2]
[325156321,1714542661539,-500.0,0.00012054,2]
[325156322,1714542661549,-500.0,0.00012054,2]
[325156323,1714542661559,-1235.88,0.00012054,2]
[325156324,1714542661568,-500.0,0.00012054,2]
[325156325,1714542661578,-866.09,0.00012054,2]
[325156326,1714542661588,-500.0,0.00012054,2]
[325156327,1714542661598,-500.0,0.00012054,2]
[325156328,1714542661607,-1072.35,0.00012054,2]
[325156329,1714542661617,-1288.28,0.00012054,2]
[325156330,1714542661627,-228.61941564,0.00012054,2]
[325156331,1714542661636,-500.0,0.00012054,2]
[325156332,1714542661646,-3316.24,0.00012054,2]
[325156333,1714542661655,-1241.61,0.00012054,2]
[325156334,1714542661664,-500.0,0.00012054,2]
[325156335,1714542661675,-500.0,0.00012054,2]
[325156336,1714542661688,-500.0,0.00012054,2]
[325156337,1714542661697,-500.0,0.00012054,2]
[325156338,1714542661706,-2504.85,0.00012054,2]
[325156339,1714542661716,-500.0,0.00012054,2]
[325156340,1714542661725,-500.0,0.00012054,2]
[325156341,1714542661735,-810.87,0.00012054,2]
[325156342,1714542661744,-500.0,0.00012054,2]
[325156343,1714542661754,-500.0,0.00012054,2]
[325156344,1714542661764,-507.55,0.00012054,2]
[325156345,1714542661774,-870.27,0.00012054,2]
[325156346,1714542661783,-3432.19,0.00012054,2]
[325156347,1714542661793,-500.0,0.00012054,2]
[325156348,1714542661802,-1019.03,0.00012054,2]
[325156349,1714542661812,-935.9,0.00012054,2]
[325156350,1714542661822,-563.78,0.00012054,2]
[325156351,1714542661831,-2956.33,0.00012054,2]
[325156352,1714542661841,-1026.81,0.00012054,2]
[325156353,1714542661850,-3294.14,0.00012054,2]
[325156354,1714542661860,-500.0,0.00012054,2]
[325156355,1714542661869,-500.0,0.00012054,2]
[325156356,1714542661879,-500.0,0.00012054,2]
[325156357,1714542661889,-1610.66,0.00012054,2]
[325156358,1714542661899,-500.0,0.00012054,2]
[325156359,1714542661909,-500.0,0.00012054,2]
[325156360,1714542661919,-1323.01,0.00012054,2]
[325156361,1714542661928,-6150.44,0.00012054,2]
[325156362,1714542661939,-1965.64,0.00012054,2]
[325156363,1714542661949,-500.0,0.00012054,2]
[325156364,1714542661959,-500.0,0.00012054,2]
[325156365,1714542661968,-500.0,0.00012054,2]
[325156366,1714542661978,-500.34,0.00012054,2]
[325156367,1714542661987,-11884.42,0.00012054,2]
[325156368,1714542661997,-500.0,0.00012054,2]
[325156369,1714542662007,-1478.72,0.00012054,2]
[325156370,1714542662016,-1095.18,0.00012054,2]
[325156371,1714542662026,-12067.93,0.00012054,2]
[325156372,1714542662035,-1361.3,0.00012054,2]
[325156373,1714542662045,-500.0,0.00012054,2]
[325156374,1714542662054,-671.59,0.00012054,2]
[325156375,1714542662063,-500.0,0.00012054,2]
[325156376,1714542662073,-803.19,0.00012054,2]
[325156377,1714542662082,-510.64,0.00012054,2]
[325156378,1714542662092,-1131.44,0.00012054,2]
[325156379,1714542662102,-5313.27,0.00012054,2]
[325156380,1714542662111,-1967.48,0.00012054,2]
[325156381,1714542662121,-741.95,0.00012054,2]
[325156382,1714542662131,-500.0,0.00012054,2]
[325156383,1714542662140,-465.86715349,0.00012054,2]
[325156384,1714542662149,-500.0,0.00012054,2]
[325156385,1714542662158,-500.0,0.00012054,2]
[325156386,1714542662168,-12501.05,0.00012054,2]
[325156387,1714542662177,-500.0,0.00012054,2]
[325156388,1714542662188,-500.0,0.00012054,2]
[325156389,1714542662197,-150.0,0.00012066,2]
[325156390,1714542662210,-150.0,0.00012067,2]
[325156391,1714542662230,-1000.0,0.00012068,2]
[325156392,1714542662241,-150.0,0.00012077,2]
[325156393,1714542662253,-151.50674154,0.00012083,2]
[325156394,1714542662263,-150.0,0.00012083,2]
[325156395,1714542662273,-8811.34,0.00012087,2]
[325156396,1714542662283,-29999.99,0.00012087,2]
[325156397,1714542662293,-7724.61,0.00012087,2]
[325156398,1714542662303,-1202.82,0.00012087,2]
[325156399,1714542662313,-8275.9,0.00012087,2]
[325156400,1714542662324,-150.0,0.00012089,2]
[325156401,1714542662333,-150.0,0.00012105,2]
[325156402,1714542662343,-150.0,0.00012108,2]
[325156403,1714542662354,-150.0,0.00012114,2]
[325156404,1714542662364,-152.24,0.00012115,2]
[325156405,1714542662374,-150.0,0.00012117,2]
[325156406,1714542662384,-150.0,0.00012118,2]
[325156407,1714542662395,-150.0,0.0001212,2]
[325156408,1714542662405,-150.0,0.00012122,2]
[325156409,1714542662415,-150.0,0.00012123,2]
[325156410,1714542662425,-150.0,0.00012125,2]
[325156411,1714542662437,-150.0,0.00012128,2]